fUSD/lending_fUSD_20260128
["ID","MTS","AMOUNT","RATE_DAILY","PERIOD"]
[403838827,1769584962369,500.0,0.00014867,2]
[403838828,1769584962548,500.0,0.00014867,2]
[403838829,1769584963218,500.0,0.00014867,2]
[403838830,1769584963868,500.0,0.00014867,2]
[403838831,1769584964738,500.0,0.00014867,2]
[403838832,1769584965382,500.0,0.00014867,2]
[403838833,1769584966069,508.60443676,0.00014867,2]
[403838834,1769584972930,-1887.42140296,0.00014867,2]
[403838835,1769584973154,-10000.01,0.00014867,2]
[403838836,1769584973281,-10000.01,0.00014867,2]
[403838837,1769584973421,-10000.01,0.00014867,2]
[403838838,1769584973570,-10000.01,0.00014867,2]
[403838839,1769584973720,-10000.01,0.00014867,2]
[403838840,1769584975527,-10000.01,0.00014867,2]
[403838841,1769584975722,-10000.01,0.00014867,2]
[403838842,1769584975836,-10000.01,0.00014867,2]
[403838843,1769584975981,-10000.01,0.00014867,2]
[403838844,1769584978702,-10000.01,0.00014867,2]
[403838845,1769584978815,-10000.01,0.00014867,2]
[403838846,1769584979008,-10000.01,0.00014867,2]
[403838847,1769584979132,-10000.01,0.00014867,2]
[403838848,1769584979258,-10000.01,0.00014867,2]
[403838849,1769584979356,-10000.01,0.00014867,2]
[403838850,1769585019569,404.7936701,0.00014681,2]
[403838851,1769585040367,3153.274162,0.00014693,2]
[403838852,1769585090058,226.93,0.000147,2]
[403838853,1769585125572,1028.79992716,0.000108,2]
[403838854,1769585136612,5186.21224074,9e-05,2]
[403838855,1769585136636,9813.78775926,9e-05,2]
[403838856,1769585155497,-233.0,0.00014766,2]
[403838857,1769585155528,-192.0,0.00014766,2]
[403838858,1769585155560,-300.0,0.00014766,2]
[403838859,1769585155592,-1200.0,0.00014766,2]
[403838860,1769585155623,-2639.6574556,0.00014767,2]
[403838861,1769585158444,-870.6950888,0.00014767,2]
[403838862,1769585158475,-203.76526324,0.00014767,2]
[403838863,1769585158505,-3333.0862,0.00014767,2]
[403838864,1769585165158,-2052.0685,0.00014767,2]
[403838865,1769585165192,-345.7499,0.00014767,2]
[403838866,1769585169659,-4795.6368,0.00014767,2]
[403838867,1769585171857,162.14,0.00013086,2]
[403838868,1769585180936,155.0,0.00021,30]
[403838869,1769585224121,600.0,0.000148,5]
[403838870,1769585226653,1300.0,0.000149,5]
[403838871,1769585231640,1102.07325121,0.00014866,5]
[403838881,1769585431822,-1749.99408228,0.00014767,2]
[403838882,1769585432032,-408.7364,0.00014767,2]
[403838883,1769585432042,-1970.72797723,0.00014767,2]
[403838884,1769585432052,-999.0,0.00014767,2]
[403838885,1769585432063,-46008.5208864,0.00014767,2]
[403838886,1769585432073,-16003.95112147,0.00014767,2]
[403838887,1769585432083,-670.50807902,0.00014767,2]
[403838888,1769585432103,-508.0,0.00014767,2]
[403838889,1769585432942,3159.31728996,0.00014767,2]
[403838891,1769585437484,-11489.70347207,0.00014767,2]
[403838892,1769585437551,-366021.4836357,0.00014767,2]
[403838893,1769585437615,-339.39074919,0.00014767,2]
[403838894,1769585437626,-4478.58728033,0.00014767,2]
[403838914,1769585439583,-6000.0,0.00014767,2]
[403838915,1769585439646,-559221.97943381,0.00014767,2]
[403838927,1769585445513,-2329.08126068,0.00014767,2]
[403838929,1769585445634,-612.70471368,0.00014767,2]
[403838933,1769585450934,-142797.0,0.00014767,2]
[403838934,1769585456160,-100000.0,0.00014767,2]
[403838935,1769585458629,646.87,0.00013699,2]
[403838936,1769585461416,300.0,0.00014766,2]
[403838937,1769585463521,955.89913636,0.00014767,2]
[403838938,1769585463572,926.47041239,0.00014767,2]
[403838939,1769585464865,511.46499673,0.00014767,2]
[403838940,1769585464895,377.75641518,0.00014767,2]
[403838941,1769585464972,1734.8925835,0.00014767,2]
[403838942,1769585578505,581.45652,0.00014767,2]
[403838943,1769585578671,778.86477401,0.00014767,2]
[403838944,1769585582355,150.0,0.00014766,2]
[403838945,1769585601869,291.0,0.00014766,2]
[403838946,1769585610808,4119.6099,0.00014667,2]
[403838947,1769585612993,1966.42980731,0.00014667,2]
[403838948,1769585613021,10000.01,0.00014667,2]
[403838955,1769585642041,300.0,0.00014666,2]
[403838956,1769585701273,1200.0,0.00014666,2]
[403838957,1769585724451,5532.0,0.000155,3]
[403838958,1769585755825,504.0,0.000155,3]
[403838959,1769585762420,300.0,0.00014666,2]
[403838960,1769585762501,150.0,0.00014666,2]
[403838961,1769585762569,300.0,0.00014666,2]
[403838962,1769585809764,731.45530563,0.00014666,2]
[403838963,1769585809818,731.45530563,0.00014666,2]
[403838964,1769585809869,731.45530563,0.00014666,2]
[403838965,1769585809926,731.45530563,0.00014666,2]
[403838966,1769585809975,731.45530563,0.00014666,2]
[403838967,1769585810030,731.45530563,0.00014666,2]
[403838968,1769585810098,731.45530563,0.00014666,2]
[403838969,1769585810156,731.45530563,0.00014666,2]
[403838970,1769585810208,731.45530563,0.00014666,2]
[403838971,1769585810263,731.45530563,0.00014666,2]
[403838972,1769585810314,435.4569437,0.00014666,2]
[403838973,1769585810344,295.99836193,0.00014666,2]
[403838974,1769585810415,731.45530563,0.00014666,2]
[403838975,1769585810471,731.45530563,0.00014666,2]
[403838976,1769585810520,731.45530563,0.00014666,2]
[403838977,1769585810578,731.45530563,0.00014666,2]
[403838978,1769585810630,731.45530563,0.00014666,2]
[403838979,1769585810683,731.45530563,0.00014666,2]
[403838980,1769585810744,731.45530563,0.00014666,2]
[403838981,1769585810797,731.45530563,0.00014666,2]
[403838982,1769585811298,731.45530563,0.00014666,2]
[403838983,1769585811351,731.45530563,0.00014666,2]
[403838984,1769585811400,731.45530563,0.00014666,2]
[403838985,1769585811464,731.45530563,0.00014666,2]
[403838986,1769585811518,731.45530563,0.00014666,2]
[403838987,1769585811576,195.09266488,0.00014666,2]
[403838988,1769585811606,536.36264075,0.00014666,2]
[403838989,1769585811677,731.45530563,0.00014666,2]
[403838990,1769585811756,731.45530563,0.00014666,2]
[403838991,1769585811803,731.45530563,0.00014666,2]
[403838992,1769585811859,731.45530563,0.00014666,2]
[403838993,1769585811907,731.45530563,0.00014666,2]
[403838994,1769585811960,731.45530563,0.00014666,2]
[403838995,1769585812015,731.45530563,0.00014666,2]
[403838996,1769585812071,731.45530563,0.00014666,2]
[403838997,1769585812135,731.45530563,0.00014666,2]
[403838998,1769585812184,731.45530563,0.00014666,2]
[403838999,1769585812266,731.45530563,0.00014666,2]
[403839000,1769585812325,731.45530563,0.00014666,2]
[403839001,1769585812366,686.18369169,0.00014666,2]
[403839002,1769585812398,45.27161394,0.00014666,2]
[403839003,1769585812457,731.45530563,0.00014666,2]
[403839004,1769585818398,731.45530563,0.00014666,2]
[403839005,1769585818459,731.45530563,0.00014666,2]
[403839006,1769585829237,731.45530563,0.00014666,2]
[403839007,1769585829342,731.45530563,0.00014666,2]
[403839008,1769585829406,731.45530563,0.00014666,2]
[403839009,1769585829479,731.45530563,0.00014666,2]
[403839010,1769585829536,731.45530563,0.00014666,2]
[403839011,1769585829611,731.45530563,0.00014666,2]
[403839012,1769585829680,731.45530563,0.00014666,2]
[403839013,1769585829774,731.45530563,0.00014666,2]
[403839014,1769585829832,731.45530563,0.00014666,2]
[403839015,1769585829900,731.45530563,0.00014666,2]
[403839016,1769585829960,445.81941287,0.00014666,2]
[403839017,1769585829991,285.63589276,0.00014666,2]
[403839018,1769585830044,731.45530563,0.00014666,2]
[403839019,1769585830140,731.45530563,0.00014666,2]
[403839020,1769585830207,731.45530563,0.00014666,2]
[403839021,1769585830301,731.45530563,0.00014666,2]
[403839022,1769585830370,731.45530563,0.00014666,2]
[403839023,1769585830430,731.45530563,0.00014666,2]
[403839024,1769585830498,731.45530563,0.00014666,2]
[403839025,1769585830568,731.45530563,0.00014666,2]
[403839026,1769585830622,731.45530563,0.00014666,2]
[403839027,1769585830690,731.45530563,0.00014666,2]
[403839028,1769585830748,731.45530563,0.00014666,2]
[403839029,1769585830816,731.45530563,0.00014666,2]
[403839030,1769585830880,731.45530563,0.00014666,2]
[403839031,1769585830952,205.45513405,0.00014666,2]
[403839032,1769585830989,526.00017158,0.00014666,2]
[403839033,1769585831053,731.45530563,0.00014666,2]
[403839034,1769585831113,731.45530563,0.00014666,2]
[403839035,1769585831214,731.45530563,0.00014666,2]
[403839036,1769585831275,731.45530563,0.00014666,2]
[403839037,1769585831399,731.45530563,0.00014666,2]
[403839038,1769585831463,731.45530563,0.00014666,2]
[403839039,1769585831528,731.45530563,0.00014666,2]
[403839040,1769585831601,731.45530563,0.00014666,2]
[403839041,1769585831664,731.45530563,0.00014666,2]
[403839042,1769585831717,731.45530563,0.00014666,2]
[403839043,1769585831774,731.45530563,0.00014666,2]
[403839044,1769585831858,731.45530563,0.00014666,2]
[403839045,1769585831983,696.54616086,0.00014666,2]
[403839046,1769585832016,34.90914477,0.00014666,2]
[403839047,1769585832083,731.45530563,0.00014666,2]
[403839048,1769585847288,-457.09823188,0.00014667,2]
[403839049,1769585847378,-10000.01,0.00014667,2]
[403839050,1769585847508,-10000.01,0.00014667,2]
[403839051,1769585847641,-10000.01,0.00014667,2]
[403839052,1769585847774,-10000.01,0.00014667,2]
[403839053,1769585847854,-10000.01,0.00014667,2]
[403839054,1769585847989,-10000.01,0.00014667,2]
[403839055,1769585848123,-10000.01,0.00014667,2]
[403839056,1769585848249,-3182.01253919,0.00014667,2]
[403839057,1769585848275,-3635.98492162,0.00014667,2]
[403839058,1769585850964,-1723.1847,0.00014667,2]
[403839059,1769585850996,-2236.0821,0.00014667,2]
[403839060,1769585851037,-2081.4764,0.00014667,2]
[403839061,1769585851069,-1000.0,0.00014667,2]
[403839062,1769585851099,-160.4806,0.00014667,2]
[403839063,1769585851130,-237.1434,0.00014667,2]
[403839064,1769585851242,-683.8524,0.00014673,2]
[403839065,1769585851258,-1000.0,0.00014673,2]
[403839066,1769585851273,-160.4806,0.00014673,2]
[403839067,1769585851295,-237.1434,0.00014673,2]
[403839068,1769585851310,-3041.8092,0.00014673,2]
[403839069,1769585866410,355.684774,0.00014567,2]
[403839070,1769585902080,187.0,0.00014666,2]
[403839071,1769585910626,5532.0,0.000155,5]
[403839072,1769585911671,739.67390457,0.00014666,2]
[403839073,1769585911729,739.67390457,0.00014666,2]
[403839074,1769585911782,739.67390457,0.00014666,2]
[403839075,1769585911835,739.67390457,0.00014666,2]
[403839076,1769585911889,739.67390457,0.00014666,2]
[403839077,1769585911936,739.67390457,0.00014666,2]
[403839078,1769585941749,150.0,0.00014666,2]
[403839079,1769586001531,1200.0,0.00014666,2]
[403839080,1769586003552,271.0,0.00014667,2]
[403839081,1769586016631,194.50684152,0.00014666,2]
[403839101,1769586024523,500.0,0.00014666,2]
[403839102,1769586024574,500.0,0.00014666,2]
[403839103,1769586024626,431.38232094,0.00014666,2]
[403839109,1769586029588,504.08893195,0.00014666,2]
[403839110,1769586030942,500.0,0.00014666,2]
[403839111,1769586030988,175.70362962,0.00014666,2]
[403839112,1769586033285,592.60007455,0.00014197,2]
[403839113,1769586033313,2415.10992545,0.00014197,2]
[403839114,1769586038348,356.2518431,0.00014666,2]
[403839115,1769586058064,500.0,0.00014666,2]
[403839116,1769586058104,521.72408883,0.00014666,2]
[403839117,1769586058141,286.9369614,0.00014666,2]
[403839118,1769586058184,479.6879999,0.00014666,2]
[403839119,1769586058238,475.59861968,0.00014666,2]
[403839120,1769586058390,538.73656257,0.00014666,2]
[403839121,1769586058478,500.0,0.00014666,2]
[403839122,1769586058547,500.0,0.00014666,2]
[403839147,1769586121711,150.0,0.00014666,2]
[403839148,1769586126652,151.0,0.00014667,2]
[403839149,1769586126734,151.0,0.00014667,2]
[403839150,1769586127048,151.0,0.00014667,2]
[403839151,1769586127672,151.0,0.00014667,2]
[403839152,1769586128289,151.0,0.00014667,2]
[403839153,1769586129098,151.0,0.00014667,2]
[403839154,1769586129713,151.0,0.00014667,2]
[403839155,1769586130355,151.0,0.00014667,2]
[403839156,1769586130958,151.0,0.00014667,2]
[403839157,1769586131272,500.0,0.00014667,2]
[403839158,1769586131589,151.0,0.00014667,2]
[403839159,1769586131857,500.0,0.00014667,2]
[403839160,1769586132188,151.0,0.00014667,2]
[403839161,1769586132474,500.0,0.00014667,2]
[403839162,1769586132794,114.96399907,0.00014667,2]
[403839163,1769586132821,36.03600093,0.00014667,2]
[403839164,1769586133078,500.0,0.00014667,2]
[403839165,1769586133456,151.0,0.00014667,2]
[403839166,1769586134008,500.0,0.00014667,2]
[403839167,1769586134096,151.0,0.00014667,2]
[403839168,1769586134307,500.0,0.00014667,2]
[403839169,1769586134680,151.0,0.00014667,2]
[403839170,1769586134949,513.90151106,0.00014667,2]
[403839171,1769586135281,151.0,0.00014667,2]
[403839172,1769586135869,151.0,0.00014667,2]
[403839173,1769586136473,151.0,0.00014667,2]
[403839174,1769586137401,151.0,0.00014667,2]
[403839175,1769586137668,154.12320285,0.00014667,2]
[403839176,1769586140990,151.0,0.00014667,2]
[403839177,1769586141626,151.0,0.00014667,2]
[403839178,1769586142249,151.0,0.00014667,2]
[403839179,1769586142857,151.0,0.00014667,2]
[403839180,1769586143469,151.0,0.00014667,2]
[403839181,1769586144105,151.0,0.00014667,2]
[403839182,1769586144751,151.0,0.00014667,2]
[403839183,1769586144927,200.0,0.00014667,2]
[403839184,1769586145354,151.0,0.00014667,2]
[403839186,1769586145950,151.0,0.00014667,2]
[403839187,1769586146126,160.74119729,0.00014667,2]
[403839188,1769586146217,500.0,0.00014667,2]
[403839189,1769586146679,151.0,0.00014667,2]
[403839190,1769586146825,500.0,0.00014667,2]
[403839191,1769586147302,151.0,0.00014667,2]
[403839192,1769586148020,500.0,0.00014667,2]
[403839193,1769586148152,500.0,0.00014667,2]
[403839194,1769586148785,500.0,0.00014667,2]
[403839195,1769586149386,500.0,0.00014667,2]
[403839196,1769586150002,500.0,0.00014667,2]
[403839197,1769586150608,500.0,0.00014667,2]
[403839198,1769586151358,500.0,0.00014667,2]
[403839199,1769586152001,217.20808787,0.00014667,2]
[403839200,1769586152028,282.79191213,0.00014667,2]
[403839201,1769586152626,429.32655419,0.00014667,2]
[403839202,1769586156629,500.0,0.00014667,2]
[403839203,1769586157591,202.2917898,0.00014667,2]
[403839204,1769586165296,200.0,0.00014667,2]
[403839205,1769586178584,8385.59974388,0.0001394,2]
[403839206,1769586178611,4630.21025612,0.0001394,2]
[403839207,1769586181439,200.0,0.0001394,2]
[403839208,1769586246770,-33266.4327,0.00014667,2]
[403839209,1769586246795,-1000.0,0.00014667,2]
[403839210,1769586246820,-12301.482,0.00014667,2]
[403839211,1769586246843,-250.0,0.00014667,2]
[403839212,1769586246867,-1378.93843522,0.00014667,2]
[403839213,1769586246892,-195.0,0.00014667,2]
[403839214,1769586246917,-195.0,0.00014667,2]
[403839215,1769586246943,-600.0,0.00014667,2]
[403839216,1769586246969,-300.0,0.00014667,2]
[403839217,1769586246993,-201.55532227,0.00014668,2]
[403839218,1769586247019,-195.0,0.00014668,2]
[403839219,1769586247045,-116.59154251,0.00014669,2]
[403839220,1769586361880,-17920.323,0.00014667,2]
[403839221,1769586361907,-1000.0,0.00014667,2]
[403839222,1769586361931,-2500.0,0.00014667,2]
[403839223,1769586361957,-600.0,0.00014668,2]
[403839224,1769586361983,-9279.677,0.00014694,2]
[403839225,1769586369297,5021.32,0.00014091,2]
[403839226,1769586416879,148.47974388,0.0001462,2]
[403839227,1769586416903,1473.54866012,0.0001462,2]
[403839228,1769586454370,8526.46133988,0.00014567,2]
[403839229,1769586454399,10000.01,0.00014567,2]
[403839230,1769586454428,10000.01,0.00014567,2]
[403839231,1769586454457,10000.01,0.00014567,2]
[403839232,1769586454485,10000.01,0.00014567,2]
[403839233,1769586454512,10000.01,0.00014567,2]
[403839234,1769586454540,10000.01,0.00014567,2]
[403839235,1769586454568,10000.01,0.00014567,2]
[403839236,1769586454597,10000.01,0.00014567,2]
[403839237,1769586454629,10000.01,0.00014567,2]
[403839238,1769586464663,576.03,0.00014161,2]
[403839239,1769586481247,300.0,0.00014566,2]
[403839240,1769586481691,150.0,0.00014566,2]
[403839241,1769586482785,300.0,0.00014566,2]
[403839242,1769586497501,151.0,0.00014564,2]
[403839243,1769586498387,151.0,0.00014564,2]
[403839244,1769586539530,8948.01,0.00014007,2]
[403839245,1769586539554,10000.01,0.00014007,2]
[403839246,1769586539579,10000.01,0.00014007,2]
[403839247,1769586539603,10000.01,0.00014007,2]
[403839248,1769586539626,10000.01,0.00014007,2]
[403839249,1769586539652,10000.01,0.00014007,2]
[403839250,1769586539676,10000.01,0.00014007,2]
[403839251,1769586539700,10000.01,0.00014007,2]
[403839252,1769586539724,10000.01,0.00014007,2]
[403839253,1769586539747,9487.57,0.00014007,2]
[403839254,1769586561294,303.0,0.000145,2]
[403839255,1769586561336,209.44,0.00014566,2]
[403839256,1769586561359,155.76686218,0.00014566,2]
[403839257,1769586561394,200.85587298,0.00014566,2]
[403839258,1769586561433,500.0,0.00014566,2]
[403839259,1769586561471,416.24707173,0.00014566,2]
[403839260,1769586561518,406.08906178,0.00014566,2]
[403839261,1769586561574,500.0,0.00014566,2]
[403839262,1769586561958,500.0,0.00014566,2]
[403839263,1769586562040,227.1155938,0.00014566,2]
[403839264,1769586569526,500.0,0.00014566,2]
[403839265,1769586569573,281.10476786,0.00014566,2]
[403839266,1769586569617,500.0,0.00014566,2]
[403839267,1769586569682,500.0,0.00014566,2]
[403839268,1769586569733,500.0,0.00014566,2]
[403839269,1769586569793,500.0,0.00014566,2]
[403839270,1769586569841,500.0,0.00014566,2]
[403839271,1769586569899,500.0,0.00014566,2]
[403839272,1769586569956,500.0,0.00014566,2]
[403839273,1769586570005,500.0,0.00014566,2]
[403839274,1769586570053,500.0,0.00014566,2]
[403839275,1769586570112,500.0,0.00014566,2]
[403839276,1769586570161,500.0,0.00014566,2]
[403839277,1769586570227,500.0,0.00014566,2]
[403839278,1769586570278,312.83076967,0.00014566,2]
[403839279,1769586570307,187.16923033,0.00014566,2]
[403839280,1769586570370,500.0,0.00014566,2]
[403839281,1769586570433,500.0,0.00014566,2]
[403839282,1769586570486,500.0,0.00014566,2]
[403839283,1769586570529,597.95190717,0.00014566,2]
[403839284,1769586570601,500.0,0.00014566,2]
[403839285,1769586570659,500.0,0.00014566,2]
[403839286,1769586570714,500.0,0.00014566,2]
[403839287,1769586570774,500.0,0.00014566,2]
[403839288,1769586570827,500.0,0.00014566,2]
[403839289,1769586570884,500.0,0.00014566,2]
[403839290,1769586571495,500.0,0.00014566,2]
[403839291,1769586571589,500.0,0.00014566,2]
[403839292,1769586571634,500.0,0.00014566,2]
[403839293,1769586601474,300.0,0.00014566,2]
[403839294,1769586601513,1200.0,0.00014566,2]
[403839295,1769586602904,10000.01,0.00014478,2]
[403839296,1769586602931,7126.143831,0.00014478,2]
[403839297,1769586612449,150.70133408,0.00014492,2]
[403839298,1769586612755,150.0,0.00014492,2]
[403839299,1769586612918,251.58811045,0.00014547,2]
[403839300,1769586613205,180.49,0.00014557,2]
[403839301,1769586613245,500.0,0.00014492,2]
[403839302,1769586613314,150.0,0.00014492,2]
[403839303,1769586613398,500.0,0.00014547,2]
[403839304,1769586613435,500.0,0.00014492,2]
[403839305,1769586613485,491.08672447,0.00014492,2]
[403839306,1769586613511,8.91327553,0.00014492,2]
[403839307,1769586613553,150.0,0.00014547,2]
[403839308,1769586613602,502.30791208,0.00014547,2]
[403839309,1769586613652,180.49,0.00014557,2]
[403839310,1769586613697,500.0,0.00014547,2]
[403839311,1769586613781,180.49,0.00014557,2]
[403839312,1769586614280,500.0,0.00014492,2]
[403839313,1769586614426,500.0,0.00014492,2]
[403839314,1769586614773,500.0,0.00014547,2]
[403839315,1769586614845,500.0,0.00014547,2]
[403839316,1769586614894,500.0,0.00014492,2]
[403839317,1769586614975,500.0,0.00014547,2]
[403839318,1769586615405,150.0,0.00014492,2]
[403839319,1769586615557,150.0,0.00014547,2]
[403839320,1769586616927,150.0,0.00013914,2]
[403839321,1769586617312,170.2905794,0.00014557,2]
[403839322,1769586618001,159.0424801,0.00014566,2]
[403839323,1769586618054,500.0,0.00014566,2]
[403839324,1769586618110,500.0,0.00014566,2]
[403839325,1769586618163,500.0,0.00014566,2]
[403839326,1769586618224,500.0,0.00014566,2]
[403839327,1769586618277,500.0,0.00014566,2]
[403839328,1769586618337,500.0,0.00014566,2]
[403839329,1769586618396,500.0,0.00014566,2]
[403839330,1769586618451,500.0,0.00014566,2]
[403839331,1769586618506,500.0,0.00014566,2]
[403839332,1769586618560,198.47575289,0.00014566,2]
[403839333,1769586618592,301.52424711,0.00014566,2]
[403839334,1769586618651,500.0,0.00014566,2]
[403839335,1769586618702,500.0,0.00014566,2]
[403839336,1769586618762,500.0,0.00014566,2]
[403839337,1769586618823,500.0,0.00014566,2]
[403839338,1769586618877,500.0,0.00014566,2]
[403839339,1769586618931,500.0,0.00014566,2]
[403839340,1769586618991,500.0,0.00014566,2]
[403839341,1769586619051,500.0,0.00014566,2]
[403839342,1769586619110,500.0,0.00014566,2]
[403839343,1769586619154,500.0,0.00014566,2]
[403839344,1769586619217,500.0,0.00014566,2]
[403839345,1769586619266,500.0,0.00014566,2]
[403839346,1769586619319,500.0,0.00014566,2]
[403839347,1769586619370,500.0,0.00014566,2]
[403839348,1769586619417,500.0,0.00014566,2]
[403839349,1769586619463,500.0,0.00014566,2]
[403839350,1769586619516,497.72434129,0.00014566,2]
[403839351,1769586619565,500.0,0.00014566,2]
[403839352,1769586619610,500.0,0.00014566,2]
[403839353,1769586619659,200.7614116,0.00014566,2]
[403839354,1769586619696,299.2385884,0.00014566,2]
[403839355,1769586619782,500.0,0.00014566,2]
[403839356,1769586619841,500.0,0.00014566,2]
[403839357,1769586619900,500.0,0.00014566,2]
[403839358,1769586619974,500.0,0.00014566,2]
[403839359,1769586620026,500.0,0.00014566,2]
[403839360,1769586620127,500.0,0.00014566,2]
[403839361,1769586620177,500.0,0.00014566,2]
[403839362,1769586620332,500.0,0.00014566,2]
[403839363,1769586620419,500.0,0.00014566,2]
[403839364,1769586620467,500.0,0.00014566,2]
[403839365,1769586631538,-832.22856812,0.00014567,2]
[403839366,1769586631578,-364.2,0.00014567,2]
[403839367,1769586631589,-994.88176241,0.00014567,2]
[403839368,1769586631600,-2830.76908413,0.00014567,2]
[403839369,1769586631611,-800.0,0.00014567,2]
[403839370,1769586631622,-62858.97294855,0.00014567,2]
[403839371,1769586631633,-286.98,0.00014567,2]
[403839372,1769586631643,-12604.25775885,0.00014567,2]
[403839373,1769586631654,-74417.5891487,0.00014567,2]
[403839374,1769586631673,-1600.0,0.00014567,2]
[403839375,1769586631720,-0.91610689,0.00014567,2]
[403839376,1769586631731,-619.35433313,0.00014567,2]
[403839377,1769586631743,-3124.2367233,0.00014567,2]
[403839378,1769586631754,-7124.18576796,0.00014567,2]
[403839379,1769586631772,-1293.07089697,0.00014567,2]
[403839380,1769586631828,-715.61131561,0.00014567,2]
[403839382,1769586632480,500.0,0.00014566,2]
[403839383,1769586632529,500.0,0.00014566,2]
[403839384,1769586632582,500.0,0.00014566,2]
[403839385,1769586632633,500.0,0.00014566,2]
[403839386,1769586632688,500.0,0.00014566,2]
[403839387,1769586632739,500.0,0.00014566,2]
[403839388,1769586632793,500.0,0.00014566,2]
[403839389,1769586632836,500.0,0.00014566,2]
[403839390,1769586632888,500.0,0.00014566,2]
[403839391,1769586633049,200.7714116,0.00014566,2]
[403839392,1769586633079,299.2285884,0.00014566,2]
[403839393,1769586634156,500.0,0.00014566,2]
[403839394,1769586634202,500.0,0.00014566,2]
[403839395,1769586634258,500.0,0.00014566,2]
[403839396,1769586634305,500.0,0.00014566,2]
[403839397,1769586634356,500.0,0.00014566,2]
[403839398,1769586634399,500.0,0.00014566,2]
[403839399,1769586634512,500.0,0.00014566,2]
[403839400,1769586635711,1000.0,0.00013909,2]
[403839401,1769586637726,-6103.65377534,0.00014567,2]
[403839402,1769586637740,-802.0,0.00014567,2]
[403839403,1769586637751,-4707.47864378,0.00014567,2]
[403839404,1769586637775,-875.29292091,0.00014567,2]
[403839405,1769586637788,-252.9257169,0.00014567,2]
[403839406,1769586637798,-7297.19800026,0.00014567,2]
[403839407,1769586637810,-5923.73475762,0.00014567,2]
[403839421,1769586638032,-1.69743093,0.00014567,2]
[403839423,1769586638044,-3928.40235194,0.00014567,2]
[403839425,1769586638063,-8229.21082737,0.00014567,2]
[403839430,1769586639770,-930.29142435,0.00014567,2]
[403839431,1769586639782,-1141954.3083961,0.00014567,2]
[403839432,1769586639792,-150.0,0.00014578,2]
[403839433,1769586639804,-500.0,0.00014578,2]
[403839434,1769586639821,-500.0,0.00014578,2]
[403839435,1769586639831,-500.0,0.00014578,2]
[403839436,1769586639841,-500.0,0.00014578,2]
[403839437,1769586639851,-500.0,0.00014578,2]
[403839438,1769586639861,-500.0,0.00014578,2]
[403839439,1769586639872,-150.0,0.00014578,2]
[403839440,1769586639882,-150.0,0.00014578,2]
[403839441,1769586639893,-500.0,0.00014602,2]
[403839442,1769586639904,-200.0,0.00014602,2]
[403839443,1769586639915,-500.0,0.00014602,2]
[403839444,1769586639925,-500.0,0.00014602,2]
[403839445,1769586639935,-500.0,0.00014602,2]